bitfinex-derivatives/quotes_SOLF0:USTF0_20250609
["timestamp","ask_amount","ask_price","bid_price","bid_amount"]
[1749512624199,6.1928,161.4,161.38,0.04529838]
[1749512624407,0.04053844,161.42,161.38,0.04529838]
[1749512625205,0.04053844,161.42,161.38,6.23879838]
[1749512625502,0.04053844,161.42,161.38,0.04529838]
[1749512627510,0.04053844,161.42,161.38,11.79818055]
[1749512627810,0.04053844,161.42,161.41,11.75288217]
[1749512628103,0.04053844,161.42,161.4,11.75288217]
[1749512628704,4.3059,161.48,161.4,53.93288217]
[1749512629207,6.1897,161.48,161.44,7.66703477]
[1749512629605,0.04434751,161.48,161.44,7.7128142]
[1749512630211,6.23404751,161.48,161.44,7.7128142]
[1749512630413,0.04434751,161.48,161.45,42.18]
[1749512630609,0.04434751,161.48,161.46,7.66703477]
[1749512631707,0.04434751,161.48,161.45,42.18]
[1749512632512,4.88408786,161.55,161.47,7.66703477]
[1749512632705,6.1874,161.54,161.5,7.66703477]
[1749512633202,6.5139,161.56,161.5,7.66703477]
[1749512633406,4.3947,161.56,161.5,7.66703477]
[1749512633606,4.3947,161.56,161.51,0.04382667]
[1749512634625,7.66703477,161.54,161.45,7.66703477]
[1749512635309,7.66703477,161.54,161.46,7.66703477]
[1749512635515,0.04764168,161.52,161.48,7.70933419]
[1749512635812,0.04764168,161.52,161.5,7.66703477]
[1749512638909,0.04764168,161.52,161.49,42.16]
[1749512639114,6.1887,161.51,161.5,7.66703477]
[1749512640408,6.1888,161.5,161.49,42.16]
[1749512641914,0.04764168,161.52,161.48,0.04229942]
[1749512641915,6.1892,161.49,161.48,0.04229942]
[1749512643418,6.1892,161.49,161.45,42.16]
[1749512643419,6.1904,161.46,161.45,42.16]
[1749512643607,2.0905,161.51,161.42,7.66703477]
[1749512643811,4.394,161.49,161.42,7.66703477]
[1749512644005,6.1903,161.47,161.42,7.66703477]
[1749512644213,2.31171681,161.46,161.4,7.66703477]
[1749512644412,6.1919,161.42,161.41,0.04388694]
[1749512645414,7.00085717,161.44,161.36,42.16]
[1749512645415,12.57816711,161.43,161.36,42.16]
[1749512645615,7.66703477,161.41,161.32,49.04703477]
[1749512645819,2.31385393,161.4,161.32,49.04703477]
[1749512646213,7.66703477,161.41,161.31,0.25096]
[1749512646214,9.9811494,161.39,161.31,0.25096]
[1749512646415,6.1947,161.35,161.33,0.04339716]
[1749512646713,0.0447591,161.37,161.33,0.04339716]
[1749512646920,6.195,161.34,161.33,0.04339716]
[1749512647712,0.0447591,161.37,161.33,7.71043193]
[1749512648023,0.0447591,161.37,161.36,7.66703477]
[1749512648819,0.00050351,161.37,161.36,7.66703477]
[1749512649016,41.38,161.46,161.36,7.66703477]
[1749512649320,2.2168,161.48,161.45,7.66703477]
[1749512649620,2.2168,161.48,161.42,7.66703477]
[1749512649818,2.28092688,161.47,161.39,49.06703477]
[1749512650022,0.04420298,161.47,161.39,41.4]
[1749512650220,7.66703477,161.46,161.39,41.4]
[1749512650424,7.66703477,161.46,161.41,0.03955936]
[1749512650622,7.66703477,161.42,161.35,41.4]
[1749512650817,4.47035157,161.41,161.35,41.4]
[1749512651117,4.47035157,161.41,161.32,7.66703477]
[1749512651118,6.194,161.37,161.32,7.66703477]
[1749512651518,0.04757484,161.36,161.33,0.0477417]
[1749512651727,6.1946,161.35,161.33,0.0477417]
[1749512651926,0.04757484,161.36,161.33,0.0477417]
[1749512652126,6.1949,161.35,161.33,0.0477417]
[1749512652426,0.04757484,161.36,161.33,0.0477417]
[1749512652824,0.04757484,161.36,161.31,0.25096]
[1749512653025,7.71460961,161.36,161.31,0.25096]
[1749512653334,2.28378586,161.35,161.31,7.91799477]
[1749512653518,0.04757484,161.36,161.33,7.66703477]
[1749512653926,0.04757484,161.36,161.33,7.70855747]
[1749512654127,6.24207484,161.36,161.33,7.70855747]
[1749512654522,0.04757484,161.36,161.31,0.25096]
[1749512654928,2.28544436,161.35,161.31,0.25096]
[1749512655123,0.04757484,161.36,161.31,0.25096]
[1749512655323,9.95324713,161.35,161.31,0.25096]
[1749512655622,9.95324713,161.35,161.26,49.06703477]
[1749512655623,6.1966,161.3,161.26,41.4]
[1749512655824,7.66703477,161.33,161.26,41.4]
[1749512656019,9.74353477,161.33,161.26,41.4]
[1749512656331,6.1969,161.29,161.26,41.4]
[1749512656531,6.23679703,161.29,161.26,41.44694763]
[1749512656734,6.1975,161.28,161.26,41.44694763]
[1749512657129,0.03989703,161.29,161.26,41.44694763]
[1749512657333,6.1973,161.28,161.26,0.04694763]
[1749512657634,0.03989703,161.29,161.26,0.04694763]
[1749512657826,0.03989703,161.29,161.22,41.4]
[1749512657827,6.1983,161.26,161.22,41.4]
[1749512658028,7.7069318,161.29,161.22,41.4]
[1749512658029,7.66703477,161.29,161.22,41.4]
[1749512658220,2.0765,161.33,161.22,41.4]
[1749512658432,7.66703477,161.29,161.22,41.4]
[1749512658829,0.03940023,161.27,161.24,0.04422344]
[1749512659427,6.1981,161.26,161.24,0.04422344]
[1749512660129,2.0765,161.33,161.24,0.04422344]
[1749512660130,2.0765,161.33,161.25,7.6836007]
[1749512660330,4.2521,161.39,161.31,7.67963294]
[1749512660527,4.2521,161.39,161.33,7.67963294]
[1749512661226,0.04179904,161.38,161.35,7.67963294]
[1749512661737,0.04179904,161.38,161.35,13.87413294]
[1749512663230,17.48508209,161.51,161.37,11.75182517]
[1749512663432,2.1439,161.47,161.4,11.75182517]
[1749512663633,2.1439,161.47,161.41,41.42]
[1749512663840,2.1296,161.49,161.43,11.75182517]
[1749512664139,0.04314802,161.48,161.44,0.04157083]
[1749512664338,0.04314802,161.48,161.44,6.23237083]
[1749512664936,6.23284802,161.48,161.44,0.04157083]
[1749512665335,0.04314802,161.48,161.46,17.94202517]
[1749512665527,0.04314802,161.48,161.46,53.17182517]
[1749512665937,6.188,161.53,161.46,53.17182517]
[1749512666134,6.188,161.53,161.49,11.75182517]
[1749512666436,2.132,161.56,161.46,41.42]
[1749512666835,0.04136308,161.53,161.52,11.75182517]
[1749512667233,5.73325692,161.64,161.51,41.42]
[1749512667435,2.27452038,161.63,161.54,11.75182517]
[1749512667634,4.3605,161.64,161.54,11.75182517]
[1749512667837,4.3605,161.64,161.51,41.42]
[1749512668039,4.3605,161.64,161.54,11.75182517]
[1749512668239,0.04432292,161.61,161.57,0.04649653]
[1749512669449,6.1857,161.58,161.57,0.04649653]
[1749512669748,0.04432292,161.61,161.57,0.04649653]
[1749512670755,6.1854,161.59,161.57,0.04649653]
[1749512670947,0.04432292,161.61,161.57,0.04649653]
[1749512671755,6.22922292,161.61,161.58,11.75182517]
[1749512671954,0.04432292,161.61,161.57,0.04649653]
[1749512672451,6.1857,161.58,161.57,0.04649653]
[1749512674351,0.04432292,161.61,161.53,45.74]
[1749512674352,6.1873,161.54,161.53,45.74]
[1749512674551,2.0842,161.6,161.51,11.75182517]
[1749512674850,4.3605,161.64,161.5,356.8]
[1749512675044,4.40682107,161.63,161.51,11.75182517]
[1749512675247,0.04113956,161.59,161.55,0.04359105]
[1749512675952,6.1865,161.56,161.55,0.04359105]
[1749512677647,0.04113956,161.59,161.55,11.79541622]
[1749512677845,0.04113956,161.59,161.58,11.75182517]
[1749512678754,0.04113956,161.59,161.57,11.75182517]
[1749512678950,0.04113956,161.59,161.55,6.23039105]
[1749512679150,0.04113956,161.59,161.56,11.75182517]
[1749512680756,0.04113956,161.59,161.58,11.75182517]
[1749512680948,0.04113956,161.59,161.57,11.75182517]
[1749512682458,6.1834,161.65,161.57,11.75182517]
[1749512682651,4.4897,161.67,161.61,11.75182517]
[1749512682848,4.4897,161.67,161.6,47.36]
[1749512683048,4.4897,161.67,161.61,11.75182517]
[1749512683254,4.4897,161.67,161.63,7.64939412]
[1749512683453,4.53662863,161.67,161.63,7.68894321]
[1749512683658,2.27262863,161.67,161.63,0.03954909]
[1749512684358,0.04692863,161.67,161.64,7.64939412]
[1749512684551,2.54455928,161.72,161.66,7.64939412]
[1749512684758,6.1811,161.71,161.65,6.1827]
[1749512684956,2.54455928,161.72,161.61,356.46]
[1749512685160,6.1811,161.71,161.65,13.83229412]
[1749512685359,6.1811,161.71,161.65,6.1829]
[1749512685560,0.04568699,161.7,161.68,7.64939412]
[1749512685755,2.54455928,161.72,161.69,7.64939412]
[1749512685955,2.54455928,161.72,161.71,7.64939412]
[1749512686162,2.54455928,161.72,161.67,47.34]
[1749512686466,2.54455928,161.72,161.68,7.64939412]
[1749512686761,2.58529947,161.72,161.7,7.64939412]
[1749512686957,2.58529947,161.72,161.68,0.04534987]
[1749512687959,6.1815,161.7,161.68,0.04534987]
[1749512688159,2.58529947,161.72,161.68,0.04534987]
[1749512689153,6.1815,161.69,161.68,0.04534987]
[1749512689359,2.58529947,161.72,161.64,59.05487035]
[1749512689558,2.54455928,161.72,161.64,59.05487035]
[1749512689965,2.54455928,161.72,161.64,65.23817035]
[1749512690266,0.04365062,161.7,161.66,0.0434392]
[1749512690462,0.04365062,161.7,161.67,6.1822]
[1749512690667,0.04365062,161.7,161.66,0.0434392]
[1749512690668,0.04365062,161.7,161.66,47.3834392]
[1749512691055,6.1818,161.69,161.66,47.3834392]
[1749512691455,6.1846,161.61,161.57,6.1859]
[1749512691661,11.71487035,161.67,161.54,11.71487035]
[1749512692570,0.04127049,161.62,161.59,0.0429957]
[1749512693566,6.185,161.6,161.59,0.0429957]
[1749512693965,0.04127049,161.62,161.59,0.0429957]
[1749512694468,11.75614084,161.62,161.53,47.32]
[1749512694664,6.1862,161.57,161.53,47.32]
[1749512695469,6.22826317,161.57,161.53,47.36474685]
[1749512695668,6.22826317,161.57,161.53,53.55214685]
[1749512697265,0.04206317,161.57,161.53,53.55214685]
[1749512698573,0.04206317,161.57,161.54,6.1872]
[1749512700276,0.04206317,161.57,161.56,6.1865]
[1749512700669,0.04206317,161.57,161.53,0.04474685]
[1749512700867,0.04206317,161.57,161.44,62.0]
[1749512700868,11.71487035,161.54,161.4,47.34]
[1749512701070,6.4913,161.59,161.49,11.71487035]
[1749512701271,6.1865,161.56,161.49,11.71487035]
[1749512701471,6.4913,161.59,161.48,11.71487035]
[1749512701670,11.71487035,161.56,161.47,47.34]
[1749512701873,11.75775768,161.53,161.5,0.04643687]
[1749512702091,11.75775768,161.53,161.47,47.34]
[1749512702092,4.47610258,161.52,161.44,356.36]
[1749512702274,2.32982225,161.51,161.43,47.34]
[1749512702476,2.33004145,161.5,161.43,47.34]
[1749512702776,2.3300731,161.49,161.43,47.34]
[1749512702975,2.3300731,161.49,161.44,0.04268116]
[1749512702976,2.36933067,161.48,161.44,0.04268116]
[1749512703172,6.1908,161.45,161.44,0.04268116]
[1749512703376,0.03899127,161.48,161.44,0.04268116]
[1749512703584,2.35997337,161.48,161.44,0.04268116]
[1749512703783,2.3210853,161.47,161.39,47.36]
[1749512703973,0.03899127,161.48,161.39,47.36]
[1749512704175,0.03899127,161.48,161.42,11.71487035]
[1749512704574,0.03899127,161.48,161.45,11.71487035]
[1749512704773,0.03899127,161.48,161.45,47.4022925]
[1749512705293,2.1779,161.56,161.46,11.71487035]
[1749512705485,2.1779,161.56,161.45,47.36]
[1749512705684,2.1779,161.56,161.49,11.71487035]
[1749512706076,2.1779,161.56,161.47,11.71487035]
[1749512706282,0.03978002,161.53,161.5,0.03960896]
[1749512706786,0.03978002,161.53,161.5,6.22820896]
[1749512706987,0.03978002,161.53,161.5,0.03960896]
[1749512709382,6.1885,161.51,161.5,0.03960896]
[1749512709787,0.03978002,161.53,161.5,0.03960896]
[1749512710087,6.22778002,161.53,161.5,0.03960896]
[1749512710285,0.03978002,161.53,161.5,0.03960896]
[1749512711080,0.03978002,161.53,161.52,7.66430589]
[1749512711285,0.03978002,161.53,161.5,0.03960896]
[1749512711883,2.14478002,161.53,161.45,47.36]
[1749512712185,6.1891,161.5,161.46,6.1901]
[1749512712588,2.105,161.53,161.46,6.1901]
[1749512712589,6.1893,161.49,161.46,6.1901]
[1749512712789,0.04580353,161.49,161.46,6.23218905]
[1749512714090,0.04580353,161.49,161.46,0.04208905]
[1749512714291,0.04580353,161.49,161.47,7.66430589]
[1749512714988,0.04580353,161.49,161.48,6.1896]
[1749512715187,2.1446,161.57,161.51,7.66430589]
[1749512715394,2.1446,161.57,161.5,47.72]
[1749512715891,2.1446,161.57,161.5,55.38430589]
[1749512716096,0.04272466,161.55,161.52,0.04732437]
[1749512717395,6.1877,161.53,161.52,0.04732437]
[1749512718383,6.1874,161.54,161.52,0.04732437]
[1749512718782,6.1877,161.53,161.52,0.04732437]
[1749512719190,0.04272466,161.55,161.52,0.04732437]
[1749512719590,6.1876,161.54,161.52,0.04732437]
[1749512720388,6.22972466,161.55,161.52,0.04732437]
[1749512720697,0.04272466,161.55,161.52,0.04732437]
[1749512721887,0.04272466,161.55,161.54,7.66430589]
[1749512722294,0.04272466,161.55,161.54,13.85160589]
[1749512722892,0.04272466,161.55,161.54,7.66430589]
[1749512723097,0.04272466,161.55,161.52,7.71163026]
[1749512723293,0.04272466,161.55,161.52,0.04732437]
[1749512723992,6.22982466,161.55,161.52,0.04732437]
[1749512724484,0.04272466,161.55,161.52,0.04732437]
[1749512725993,0.04272466,161.55,161.52,7.71163026]
[1749512726197,0.04272466,161.55,161.54,7.66430589]
[1749512726400,0.04272466,161.55,161.52,0.04732437]
[1749512726702,0.04272466,161.55,161.54,7.66430589]
[1749512727000,0.04272466,161.55,161.54,13.85160589]
[1749512727500,0.04272466,161.55,161.54,6.1873]
[1749512727700,0.04272466,161.55,161.54,13.85160589]
[1749512728005,0.04272466,161.55,161.52,7.71163026]
[1749512728905,0.04272466,161.55,161.53,6.1877]
[1749512729403,0.04272466,161.55,161.52,13.89963026]
[1749512729601,0.04272466,161.55,161.54,7.66430589]
[1749512729998,11.93830589,161.63,161.58,6.1858]
[1749512729999,4.274,161.63,161.58,6.1858]
[1749512730803,6.1844,161.62,161.58,6.1858]
[1749512730997,4.274,161.63,161.59,6.1852]
[1749512731296,0.04697065,161.62,161.58,0.04105706]
[1749512731707,0.04697065,161.62,161.58,6.22665706]
[1749512732302,0.04697065,161.62,161.59,7.66430589]
[1749512732797,0.04697065,161.62,161.61,13.84900589]
[1749512733400,0.04697065,161.62,161.6,47.7]
[1749512733903,0.04697065,161.62,161.61,7.66430589]
[1749512734208,0.04697065,161.62,161.61,13.84900589]
[1749512734706,4.3687,161.68,161.64,6.1833]
[1749512735000,4.90602965,161.69,161.62,7.66430589]
[1749512735204,2.1878,161.7,161.6,47.7]
[1749512735507,10.00091154,161.69,161.6,55.36430589]
[1749512735704,0.04266674,161.66,161.63,0.04716611]
[1749512736103,7.70697263,161.66,161.63,0.04716611]
[1749512736302,7.66430589,161.64,161.56,404.2]
[1749512736503,6.1851,161.6,161.56,410.3865]
[1749512736704,7.66430589,161.62,161.56,404.2]
[1749512736905,6.1855,161.59,161.56,410.3865]
[1749512737206,0.04715745,161.59,161.56,47.7440808]
[1749512737406,6.1861,161.58,161.56,47.7440808]
[1749512737609,0.04715745,161.59,161.56,47.7440808]
[1749512738112,7.71146334,161.59,161.56,0.0440808]
[1749512739307,6.1862,161.57,161.56,0.0440808]
[1749512739708,6.1862,161.57,161.52,47.7]
[1749512739709,6.1871,161.55,161.52,47.7]
[1749512739910,7.66430589,161.57,161.52,47.7]
[1749512740305,6.1872,161.55,161.52,53.888]
[1749512740510,7.66430589,161.57,161.49,47.7]
[1749512740705,0.04319241,161.55,161.51,0.04402402]
[1749512740906,2.38608064,161.55,161.51,0.04402402]
[1749512741210,0.04319241,161.55,161.51,0.04402402]
[1749512741407,6.1874,161.54,161.51,0.04402402]
[1749512741811,0.04319241,161.55,161.51,0.04402402]
[1749512742111,2.38604891,161.55,161.51,0.04402402]
[1749512742312,0.04319241,161.55,161.51,0.04402402]
[1749512742611,6.1881,161.53,161.51,0.04402402]
[1749512742811,0.04319241,161.55,161.51,0.04402402]
[1749512743009,7.66430589,161.53,161.45,46.26]
[1749512743216,6.1899,161.48,161.45,46.26]
[1749512743414,7.66430589,161.51,161.45,46.26]
[1749512743612,4.3064,161.5,161.45,46.26]
[1749512744019,0.04392706,161.49,161.46,0.04175771]
[1749512744314,6.1896,161.48,161.46,0.04175771]
[1749512744714,6.19,161.47,161.46,0.04175771]
[1749512744909,7.70823295,161.49,161.41,46.26]
[1749512744910,4.90478413,161.48,161.41,46.26]
[1749512745104,7.66430589,161.47,161.41,46.26]
[1749512745505,6.1915,161.44,161.41,46.26]
[1749512745908,6.23388478,161.44,161.41,46.300925]
[1749512746313,6.1916,161.43,161.41,46.300925]
[1749512747214,6.1919,161.42,161.41,0.040925]
[1749512747819,6.1917,161.43,161.41,0.040925]
[1749512748018,0.04238478,161.44,161.41,0.040925]
[1749512748413,6.1919,161.42,161.41,0.040925]
[1749512748614,2.33249116,161.42,161.37,46.28]
[1749512748910,0.04238478,161.44,161.37,46.28]
[1749512749116,0.04238478,161.44,161.4,6.1927]
[1749512749517,0.04238478,161.44,161.4,7.70524911]
[1749512749716,0.04238478,161.44,161.41,6.1923]
[1749512750020,0.04238478,161.44,161.4,7.70524911]
[1749512750212,0.04238478,161.44,161.43,6.1916]
[1749512750618,2.31010791,161.49,161.42,53.94430589]
[1749512750820,2.1999,161.55,161.46,7.66430589]
[1749512751016,2.30938789,161.54,161.46,7.66430589]
[1749512751319,6.1882,161.52,161.48,6.1896]
[1749512751515,6.22832952,161.52,161.48,6.22947818]
[1749512751709,2.3093312,161.51,161.48,6.22947818]
[1749512751915,6.22832952,161.52,161.48,6.22947818]
[1749512752115,2.30932676,161.51,161.48,6.22947818]
[1749512752417,6.1885,161.51,161.48,6.22947818]
[1749512752618,0.04012952,161.52,161.48,6.22947818]
[1749512752619,0.04012952,161.52,161.48,0.03987818]
[1749512752819,6.1886,161.51,161.48,0.03987818]
[1749512753014,0.04012952,161.52,161.48,0.03987818]
[1749512754024,6.1886,161.51,161.48,0.03987818]
[1749512754221,0.04012952,161.52,161.48,0.03987818]
[1749512754726,7.70443541,161.52,161.48,0.03987818]
[1749512754916,2.32043136,161.51,161.48,0.03987818]
[1749512755724,2.32043136,161.51,161.44,6.191]
[1749512755920,2.1288,161.5,161.44,6.191]
[1749512756119,2.1288,161.5,161.45,6.1907]
[1749512756316,2.1288,161.5,161.44,7.66430589]
[1749512756624,6.19,161.48,161.45,0.0432409]
[1749512757918,6.1901,161.47,161.45,0.0432409]
[1749512759922,6.1898,161.48,161.45,0.0432409]
[1749512760224,0.04586973,161.49,161.45,0.0432409]
[1749512760729,6.1904,161.47,161.45,0.0432409]
[1749512761320,0.04586973,161.49,161.45,0.0432409]
[1749512761928,7.66430589,161.47,161.42,46.28]
[1749512762122,7.66430589,161.45,161.38,44.68]
[1749512762323,2.1585,161.48,161.37,44.68]
[1749512762526,6.1918,161.43,161.36,44.68]
[1749512762722,7.66430589,161.45,161.36,44.68]
[1749512762923,6.192,161.42,161.36,52.34430589]
[1749512763127,6.23215296,161.42,161.39,0.04240348]
[1749512764629,0.04015296,161.42,161.39,0.04240348]
[1749512765428,7.66430589,161.41,161.39,0.04240348]
[1749512765621,7.66430589,161.41,161.31,356.5]
[1749512765622,9.77190589,161.41,161.31,356.5]
[1749512765825,7.66430589,161.39,161.32,44.68]
[1749512766526,0.04315907,161.37,161.31,356.5]
[1749512766828,0.04315907,161.37,161.34,0.04196524]
[1749512767035,0.04315907,161.37,161.34,0.04584042]
[1749512767036,6.195,161.35,161.34,0.04584042]
[1749512767327,0.0413313,161.37,161.29,44.68]
[1749512767328,7.66430589,161.36,161.29,44.68]
[1749512767532,6.1955,161.33,161.29,44.68]
[1749512767925,7.66430589,161.36,161.29,44.68]
[1749512768128,7.66430589,161.34,161.25,44.68]
[1749512768323,0.03926044,161.31,161.28,0.04614624]
[1749512768729,0.03926044,161.31,161.29,6.1966]
[1749512768927,0.03926044,161.31,161.28,0.04614624]
[1749512769328,6.1969,161.29,161.28,0.04614624]
[1749512770127,0.03926044,161.31,161.28,0.04614624]
[1749512770328,0.03926044,161.31,161.29,7.66430589]
[1749512770530,0.03926044,161.31,161.28,7.71045213]
[1749512770832,0.03926044,161.31,161.29,6.1966]
[1749512771035,0.03926044,161.31,161.28,0.04614624]
[1749512772028,6.23556044,161.31,161.28,0.04614624]
[1749512772226,0.03926044,161.31,161.28,0.04614624]
[1749512772428,6.1966,161.3,161.28,0.04614624]
[1749512773737,0.03926044,161.31,161.28,0.04614624]
[1749512774832,7.66430589,161.3,161.28,0.04614624]
[1749512775228,6.1969,161.29,161.28,0.04614624]
[1749512775623,0.03926044,161.31,161.28,0.04614624]
[1749512776033,0.03926044,161.31,161.28,6.24334624]
[1749512776229,6.23546044,161.31,161.28,0.04614624]
[1749512776437,0.03926044,161.31,161.28,0.04614624]
[1749512776834,6.197,161.29,161.28,0.04614624]
[1749512777529,6.1982,161.26,161.23,6.1992]
[1749512777732,9.88600589,161.3,161.22,44.7]
[1749512777939,2.0807,161.29,161.22,44.7]
[1749512778140,6.198,161.27,161.23,6.199]
[1749512778432,2.0807,161.29,161.22,44.7]
[1749512778636,6.1985,161.26,161.24,0.03390684]
[1749512778837,0.042028,161.27,161.24,0.03390684]
[1749512779139,6.1981,161.26,161.24,0.03390684]
[1749512779342,0.042028,161.27,161.24,0.03390684]
[1749512779842,6.240028,161.27,161.24,0.03390684]
[1749512780341,0.042028,161.27,161.24,0.03390684]
[1749512780641,54.47000589,161.36,161.25,7.66430589]
[1749512780842,9.75000589,161.36,161.31,6.1958]
[1749512781137,9.75000589,161.36,161.28,52.38430589]
[1749512781440,2.0857,161.36,161.28,52.38430589]
[1749512781638,0.04276302,161.34,161.32,6.1958]
[1749512781842,0.04276302,161.34,161.32,7.66430589]
[1749512782335,56.50670589,161.44,161.33,44.72]
[1749512782536,56.50670589,161.44,161.34,7.66430589]
[1749512782743,7.66430589,161.42,161.34,13.85910589]
[1749512783140,48.8424,161.44,161.34,13.85910589]
[1749512783337,0.04560109,161.4,161.36,0.04213206]
[1749512784638,0.04560109,161.4,161.36,6.23613206]
[1749512784839,0.04560109,161.4,161.36,0.04213206]
[1749512786744,6.23840109,161.4,161.37,6.1936]
[1749512786939,0.04560109,161.4,161.37,6.1936]
[1749512787141,0.04560109,161.4,161.39,7.66430589]
[1749512787343,0.04560109,161.4,161.37,7.66430589]
[1749512787641,0.04560109,161.4,161.36,0.04213206]
[1749512788441,6.1934,161.39,161.36,0.04213206]
[1749512791051,6.1936,161.38,161.36,0.04213206]
[1749512792651,0.04560109,161.4,161.36,0.04213206]
[1749512792949,7.66430589,161.39,161.33,44.72]
[1749512793140,7.66430589,161.37,161.29,43.7]
[1749512793646,2.1078,161.36,161.29,43.7]
[1749512793848,7.66430589,161.35,161.29,43.7]
[1749512794052,7.66430589,161.33,161.3,0.04124218]
[1749512794354,0.04554955,161.34,161.3,0.04124218]
[1749512794556,6.1958,161.32,161.3,0.04124218]
[1749512795153,0.04554955,161.34,161.3,0.04124218]
[1749512795645,6.1962,161.31,161.3,0.04124218]
[1749512796151,6.1971,161.29,161.25,406.8782]
[1749512796447,7.66430589,161.32,161.25,406.8782]
[1749512796644,7.66430589,161.32,161.25,400.68]
[1749512796645,2.1253,161.31,161.25,400.68]
[1749512796841,7.66430589,161.3,161.25,43.7]
[1749512797047,2.1253,161.31,161.25,43.7]
[1749512797340,0.04639256,161.3,161.26,0.03532362]
[1749512797740,7.66430589,161.29,161.26,0.03532362]
[1749512798143,6.1977,161.27,161.26,0.03532362]
[1749512799947,6.1977,161.27,161.22,6.1996]
[1749512799948,7.66430589,161.27,161.14,43.7]
[1749512800147,7.66430589,161.23,161.14,51.36430589]
[1749512800552,6.1999,161.22,161.15,43.7]
[1749512800952,0.04229081,161.2,161.16,6.2019]
[1749512801349,0.04229081,161.2,161.15,43.7]
[1749512802348,0.04229081,161.2,161.15,49.9021]
[1749512802646,7.66430589,161.19,161.11,43.72]
[1749512802849,0.04275364,161.17,161.13,6.203]
[1749512803244,6.24435364,161.17,161.13,6.203]
[1749512803650,0.04275364,161.17,161.14,6.2027]
[1749512803849,0.04275364,161.17,161.11,43.72]
[1749512804050,0.04275364,161.17,161.13,6.203]
[1749512804454,0.04275364,161.17,161.11,43.72]
[1749512804651,0.04275364,161.17,161.11,51.38430589]
[1749512805656,0.04275364,161.17,161.11,43.72]
[1749512805845,6.24445364,161.17,161.14,6.2027]
[1749512806044,0.04275364,161.17,161.11,43.72]
[1749512806544,6.202,161.16,161.11,43.72]
[1749512807252,0.04275364,161.17,161.12,7.66430589]
[1749512807449,0.04275364,161.17,161.11,51.38430589]
[1749512808047,0.04275364,161.17,161.11,43.72]
[1749512808652,6.2027,161.15,161.11,49.9239]
[1749512808861,6.2027,161.15,161.11,43.72]
[1749512809254,6.2027,161.15,161.11,49.9238]
[1749512810254,0.04275364,161.17,161.12,7.66430589]
[1749512810554,0.04275364,161.17,161.14,7.66430589]
[1749512810754,0.04275364,161.17,161.16,6.202]
[1749512810950,0.04275364,161.17,161.11,43.72]
[1749512811356,6.24435364,161.17,161.13,6.2028]
[1749512811557,0.04275364,161.17,161.11,43.72]
[1749512812456,0.04275364,161.17,161.14,6.2025]
[1749512813861,0.04275364,161.17,161.11,51.38430589]
[1749512814161,6.24455364,161.17,161.11,51.38430589]
[1749512814557,0.04275364,161.17,161.11,51.38430589]
[1749512814964,0.04275364,161.17,161.14,6.2025]
[1749512815262,6.24455364,161.17,161.11,51.38430589]
[1749512815864,0.04275364,161.17,161.11,51.38430589]
[1749512816156,0.04275364,161.17,161.14,6.2025]
[1749512817252,6.24445364,161.17,161.14,6.2025]
[1749512817662,0.04275364,161.17,161.14,6.2025]
[1749512818063,0.04275364,161.17,161.13,6.203]
[1749512818463,0.04275364,161.17,161.11,43.72]
[1749512818660,7.66430589,161.16,161.11,43.72]
[1749512819065,6.203,161.14,161.11,43.72]
[1749512819359,0.04275364,161.17,161.12,6.2032]
[1749512819761,0.04275364,161.17,161.11,43.72]
[1749512819962,7.66430589,161.16,161.11,43.72]
[1749512820266,6.203,161.14,161.11,43.72]
[1749512820760,6.203,161.14,161.11,49.9238]
[1749512821069,6.2033,161.13,161.11,43.72]
[1749512821268,7.70705953,161.17,161.07,51.42430589]
[1749512821559,0.04176325,161.14,161.09,7.66430589]
[1749512821760,0.04176325,161.14,161.07,43.76]
[1749512822162,0.04176325,161.14,161.07,51.42430589]
[1749512822562,0.04176325,161.14,161.09,7.66430589]
[1749512823265,0.04176325,161.14,161.12,6.2033]
[1749512824260,0.04176325,161.14,161.11,6.2038]
[1749512824469,0.04176325,161.14,161.08,7.66430589]
[1749512824867,0.04176325,161.14,161.12,6.2035]
[1749512825459,0.04176325,161.14,161.08,7.66430589]
[1749512825868,0.04176325,161.14,161.11,6.2038]
[1749512826064,0.04176325,161.14,161.08,7.66430589]
[1749512826564,0.04176325,161.14,161.08,6.2049]
[1749512826962,7.70606914,161.14,161.07,43.76]